bitfinex/quotes_ETHUSD_20210701
["timestamp","ask_amount","ask_price","bid_price","bid_amount"]
[1625100281164,3.6128,2246.6,2245.8,0.14]
[1625100281782,6.67943,2246.3,2245.8,0.14]
[1625100281967,1.3117,2246.4,2245.8,0.14]
[1625100282105,3.6128,2246.6,2245.8,0.14]
[1625100282806,6.67892,2246.5,2245.8,0.14]
[1625100286204,6.67827,2246.7,2245.8,0.14]
[1625100286313,8.90353,2247.1,2245.8,0.14]
[1625100286407,9.7863,2247.4,2245.9,0.08]
[1625100286565,9.7863,2247.4,2246.3,3.29]
[1625100287160,9.7863,2247.4,2246.4,0.14]
[1625100287262,6.6774,2247.0,2246.4,0.14]
[1625100288564,10.0554,2247.0,2246.4,0.14]
[1625100290110,5.01,2246.8,2246.4,0.14]
[1625100290959,6.6786,2246.6,2246.4,0.14]
[1625100291168,4.79665203,2246.5,2246.4,0.14]
[1625100291273,8.13066272,2246.5,2246.0,0.14]
[1625100291368,3.2533,2246.5,2246.0,0.14]
[1625100291570,4.87218796,2246.4,2246.0,0.14]
[1625100291872,0.08,2246.3,2246.0,0.14]
[1625100291971,5.01,2246.2,2245.7,0.14]
[1625100292075,0.14,2246.2,2245.7,0.14]
[1625100292171,6.68012,2246.1,2245.7,0.14]
[1625100293621,4.76573987,2246.0,2245.7,0.14]
[1625100293718,6.68012,2246.1,2245.7,0.0001]
[1625100293719,15.0,2246.1,2245.7,0.0001]
[1625100293917,0.1,2246.0,2245.7,0.0001]
[1625100294019,0.08424668,2246.0,2245.7,0.0001]
[1625100294118,4.10534668,2246.0,2245.7,0.0001]
[1625100294719,4.10534668,2246.0,2245.5,0.17254589]
[1625100294822,4.10534668,2246.0,2245.6,0.14]
[1625100294919,6.681,2245.8,2245.6,0.14]
[1625100296966,6.681,2245.8,2245.5,0.17254589]
[1625100297268,4.04263202,2245.8,2245.1,0.2]
[1625100297372,5.01,2245.6,2245.2,0.14]
[1625100297568,5.01,2245.6,2245.1,0.2]
[1625100297821,2.6351,2245.7,2245.1,0.2]
[1625100298420,17.6351,2245.7,2245.1,0.2]
[1625100298821,2.6351,2245.7,2245.1,0.2]
[1625100299021,7.49733035,2245.7,2245.1,0.2]
[1625100299120,2.6351,2245.7,2245.1,0.2]
[1625100299323,2.6351,2245.7,2244.9,0.14]
[1625100299425,6.68226,2245.4,2244.9,0.14]
[1625100299522,9.95636,2245.4,2244.9,0.14]
[1625100299624,9.95636,2245.4,2244.7,12.06020661]
[1625100299723,9.95636,2245.4,2244.7,11.16298357]
[1625100299724,24.95636,2245.4,2244.7,11.16298357]
[1625100300966,9.95636,2245.4,2244.7,11.16298357]
[1625100301407,5.01,2245.2,2244.7,11.16298357]
[1625100303121,9.95636,2245.4,2244.7,11.16298357]
[1625100304223,3.2741,2245.4,2244.7,11.16298357]
[1625100304322,3.2741,2245.4,2244.8,0.14]
[1625100304660,5.01,2245.5,2244.8,0.14]
[1625100304861,5.01,2245.8,2244.8,0.14]
[1625100305161,13.84390119,2246.0,2244.8,0.14]
[1625100305263,8.90821,2246.0,2244.8,0.14]
[1625100305365,6.68137,2245.8,2244.8,6.8215]
[1625100306872,1.0,2245.9,2245.0,3.29]
[1625100307054,10.3862,2246.5,2245.0,3.29]
[1625100307151,10.3862,2246.5,2245.3,3.29]
[1625100307352,11.13649,2246.6,2245.4,0.14]
[1625100307550,11.13649,2246.6,2245.4,2.71629808]
[1625100307751,11.13649,2246.6,2245.4,5.29319375]
[1625100307851,17.15393,2246.7,2245.7,6.67889]
[1625100308053,17.15393,2246.7,2245.8,0.14]
[1625100308453,21.98975144,2246.7,2245.8,0.14]
[1625100308553,15.0,2246.6,2245.8,0.14]
[1625100308652,15.12,2246.6,2245.8,0.14]
[1625100308851,0.12,2246.6,2245.8,0.14]
[1625100309070,10.475,2246.7,2245.8,0.14]
[1625100309368,6.67975,2246.4,2245.8,0.14]
[1625100309469,0.02506204,2246.2,2245.8,0.14]
[1625100310369,5.03506204,2246.2,2245.8,0.14]
[1625100310572,5.01,2246.1,2245.8,0.14]
[1625100310672,6.68081,2246.0,2245.8,0.14]
[1625100310770,6.78081,2246.0,2245.8,0.14]
[1625100311073,0.1,2246.0,2245.8,0.14]
[1625100311171,5.01,2246.1,2245.8,0.14]
[1625100311322,0.02506204,2246.2,2245.8,0.14]
[1625100312323,6.70540204,2246.2,2245.8,0.14]
[1625100312822,7.70540204,2246.2,2245.8,0.14]
[1625100313224,1.02506204,2246.2,2245.8,0.14]
[1625100313868,0.02506204,2246.2,2245.8,0.14]
[1625100314568,5.21264538,2246.5,2245.8,0.14]
[1625100314868,0.02506204,2246.2,2245.8,0.14]
[1625100315269,0.02506204,2246.2,2245.8,0.17236831]
[1625100315823,0.02506204,2246.2,2245.9,0.06]
[1625100315925,0.02506204,2246.2,2245.8,0.17236831]
[1625100315926,0.02506204,2246.2,2245.8,0.03236831]
[1625100316022,0.02506204,2246.2,2246.0,0.14]
[1625100317406,0.02506204,2246.2,2246.0,6.81797]
[1625100318270,0.02506204,2246.2,2246.1,0.12]
[1625100318468,0.02506204,2246.2,2246.1,0.26]
[1625100319973,1.0,2247.1,2246.1,0.26]
[1625100320077,1.0,2247.3,2246.1,0.26]
[1625100320178,1.0,2247.3,2246.2,3.49]
[1625100320314,1.0,2247.3,2246.6,3.29]
[1625100320513,1.0,2247.3,2246.7,0.14]
[1625100320616,1.0,2247.3,2246.7,4.4556]
[1625100321113,11.33089,2247.9,2246.7,4.4556]
[1625100321217,11.33089,2247.9,2246.8,4.99167211]
[1625100321415,6.67565,2247.7,2246.9,0.14]
[1625100321565,11.33089,2247.9,2246.9,0.14]
[1625100321666,0.2,2247.9,2246.9,0.14]
[1625100321971,0.2,2247.9,2247.0,5.85300114]
[1625100322067,0.2,2247.9,2247.0,6.05300114]
[1625100322173,0.2,2247.9,2247.1,0.14]
[1625100322266,0.2,2247.9,2247.5,3.29]
[1625100322368,0.2,2247.9,2247.5,6.8783]
[1625100322467,0.2,2247.9,2247.6,0.14]
[1625100322670,0.2,2247.9,2247.6,2.71051259]
[1625100322875,0.2,2247.9,2247.7,0.04]
[1625100323069,0.2,2247.9,2247.8,3.43]
[1625100323172,0.2,2247.9,2247.8,6.00051259]
[1625100323173,0.0001,2247.9,2247.8,6.00051259]
[1625100324172,0.0001,2247.9,2247.8,12.67228259]
[1625100324370,0.0001,2247.9,2247.8,12.75228259]
[1625100327211,0.0001,2247.9,2247.8,12.67228259]
[1625100328416,0.0001,2247.9,2247.8,6.00051259]
[1625100328515,0.0001,2247.9,2247.8,3.43]
[1625100344647,0.0001,2247.9,2247.8,3.59]
[1625100351435,0.0001,2247.9,2247.8,12.48513]
[1625100351981,0.2,2248.9,2247.9,18.85033586]
[1625100352086,0.2,2248.9,2248.0,5.51571359]
[1625100352182,0.2,2248.9,2248.1,0.2]
[1625100352284,0.2,2248.9,2248.2,5.01]
[1625100352385,0.2,2248.9,2248.8,3.29]
[1625100352481,0.2,2248.9,2248.8,10.15893]
[1625100352584,0.2,2248.9,2248.8,10.29893]
[1625100353079,0.2,2248.9,2248.8,10.09893]
[1625100353177,0.2,2248.9,2248.8,3.43]
[1625100354332,0.2,2248.9,2248.8,10.09988]
[1625100356551,0.0001,2248.9,2248.8,10.09988]
[1625100356748,0.0001,2248.9,2248.8,10.29988]
[1625100358153,0.0001,2248.9,2248.8,10.09988]
[1625100358913,0.1501,2249.5,2248.8,10.09988]
[1625100360722,0.1501,2249.5,2248.8,12.4973955]
[1625100360849,0.1501,2249.5,2248.9,2.61664262]
[1625100360935,0.1501,2249.5,2249.2,3.29]
[1625100361035,0.1501,2249.5,2249.2,7.7599]
[1625100362142,0.1501,2249.5,2249.3,0.14]
[1625100362243,0.1501,2249.5,2249.4,6.6676]
[1625100362846,0.1501,2249.5,2249.4,0.14]
[1625100364430,6.67076,2249.3,2248.8,10.2583]
[1625100364528,3.6014,2249.5,2248.8,10.1183]
[1625100365752,10.27151,2249.5,2248.8,10.1183]
[1625100366251,15.26608123,2249.5,2248.8,10.1183]
[1625100366853,10.27151,2249.5,2248.8,10.1183]
[1625100367691,10.27876595,2249.5,2248.6,0.14]
[1625100367891,6.6712,2249.2,2248.6,0.14]
[1625100370135,6.6712,2249.2,2248.6,0.09]
[1625100371691,0.1501,2249.5,2248.6,0.09]
[1625100371885,5.01,2249.4,2248.6,0.09]
[1625100371990,0.1501,2249.5,2248.6,0.09]
[1625100373336,6.6712,2249.2,2248.6,0.09]
[1625100373938,8.89494,2249.4,2248.6,0.09]
[1625100375388,8.89494,2249.4,2248.6,6.7608]
[1625100375690,0.1501,2249.5,2248.6,6.7608]
[1625100377445,6.67096,2249.3,2248.6,6.7608]
[1625100378095,0.1501,2249.5,2248.6,6.7608]
[1625100379440,6.82067,2249.5,2248.6,6.7608]
[1625100384513,4.88598425,2249.4,2248.6,6.7608]
[1625100384713,0.06,2249.3,2248.6,6.7608]
[1625100384920,11.55691425,2249.4,2248.6,6.6708]
[1625100385015,6.67093,2249.4,2248.6,6.8008]
[1625100390493,6.67093,2249.4,2248.6,6.7008]
[1625100391638,0.1501,2249.5,2248.6,11.3082]
[1625100391835,0.1501,2249.5,2248.7,3.35]
[1625100392038,0.1501,2249.5,2248.8,0.14]
[1625100392949,0.1501,2249.5,2248.8,7.14]
[1625100393249,0.1501,2249.5,2249.2,6.66869]
[1625100393352,0.1501,2249.5,2249.2,10.19749]
[1625100393451,0.1501,2249.5,2249.3,0.14]
[1625100393949,0.1501,2249.5,2248.7,8.89148]
[1625100394047,0.1501,2249.5,2248.8,0.14]
[1625100394590,6.8204,2249.5,2248.9,6.67004]
[1625100394694,0.1501,2249.5,2249.0,0.08]
[1625100394789,0.1501,2249.5,2249.1,0.14]
[1625100395488,0.1501,2249.5,2249.1,3.7705]
[1625100395890,0.1501,2249.5,2249.1,10.44013]
[1625100396091,0.1501,2249.5,2249.2,0.04]
[1625100396288,0.0001,2249.5,2249.3,0.14]
[1625100396391,0.0001,2249.5,2249.3,3.63]
[1625100397347,0.0001,2249.5,2249.3,10.29774]
[1625100397446,0.0001,2249.5,2249.3,10.09774]
[1625100399995,0.0001,2249.5,2249.3,13.35524]
[1625100400296,0.0001,2249.5,2249.4,0.12]
[1625100400498,0.0001,2249.5,2249.4,0.26]
[1625100401552,0.0001,2249.5,2249.4,0.14]
[1625100402355,0.0001,2249.5,2249.4,4.5578]
[1625100402455,0.0001,2249.5,2249.4,11.22643]
[1625100402557,0.0001,2249.5,2249.4,11.38643]
[1625100408700,0.0001,2249.5,2249.4,4.7178]
[1625100409402,0.0001,2249.5,2249.4,11.38643]
[1625100411650,0.1001,2249.9,2249.4,11.38643]
[1625100411952,0.1001,2249.9,2249.5,0.2]
[1625100412152,0.1001,2249.9,2249.6,0.14]
[1625100412352,0.1001,2249.9,2249.3,8.89059]
[1625100412452,0.1001,2249.9,2249.4,0.14]
[1625100412596,0.1001,2249.9,2249.6,6.6678]
[1625100412791,0.1001,2249.9,2249.7,0.14]
[1625100414443,0.1001,2249.9,2249.7,6.80766]
[1625100420878,0.1001,2249.9,2249.7,0.14]
[1625100421632,0.1001,2249.9,2249.3,8.89059]
[1625100423294,0.1001,2249.9,2249.2,10.654]
[1625100423936,6.76925,2249.9,2249.2,10.654]
[1625100424235,6.76925,2249.9,2249.2,0.14]
[1625100424340,5.01,2249.7,2249.2,0.14]
[1625100424445,10.15915202,2249.6,2248.6,8.89195]
[1625100424543,25.17542168,2249.6,2248.6,0.14]
[1625100424636,5.01,2249.5,2248.6,0.14]
[1625100424739,5.41554181,2249.4,2248.6,0.14]
[1625100424835,5.01,2249.2,2248.6,0.14]
[1625100424935,0.22161525,2249.3,2248.6,0.14]
[1625100425034,0.22872804,2249.3,2248.6,0.14]
[1625100425742,0.22872804,2249.3,2248.3,9.7923]
[1625100425840,5.05,2249.2,2248.3,9.7923]
[1625100425941,5.32673552,2249.1,2248.3,9.7923]
[1625100426041,5.33615073,2249.1,2248.3,9.7923]
[1625100426479,5.33615073,2249.1,2248.0,10.3282]
[1625100426582,15.0,2249.0,2248.0,0.14]
[1625100426688,0.46482535,2248.7,2247.7,6.81314]
[1625100426784,9.44711166,2248.7,2247.7,0.14]
[1625100426980,29.45711166,2248.7,2247.7,0.14]
[1625100427084,14.45711166,2248.7,2247.7,0.14]
[1625100427182,5.01,2248.6,2247.7,0.14]
[1625100427282,5.35591905,2248.5,2247.7,0.14]
[1625100427380,10.37386748,2248.5,2247.7,0.14]
[1625100428389,6.67416,2248.4,2247.7,0.14]
[1625100428586,0.16311014,2248.3,2247.7,0.14]
[1625100428785,6.85237868,2248.4,2247.7,0.14]
[1625100429441,6.67416,2248.4,2247.7,0.14]
[1625100429738,6.85292351,2248.4,2247.7,0.14]
[1625100431145,6.67416,2248.4,2247.7,0.14]
[1625100433085,0.17999029,2248.7,2247.7,0.14]
[1625100433086,6.67321,2248.7,2247.7,0.14]
[1625100433189,5.45330457,2248.8,2247.7,4.4961]
[1625100433288,5.45330457,2248.8,2247.8,0.16]
[1625100433386,5.3371751,2249.1,2247.8,0.16]
[1625100433491,5.3371751,2249.1,2247.9,0.14]
[1625100433589,0.13077482,2249.1,2247.9,0.14]
[1625100433688,0.13077482,2249.1,2248.1,3.29]
[1625100433791,0.13077482,2249.1,2248.2,5.36926199]
[1625100433886,0.13077482,2249.1,2248.2,9.32346199]
[1625100434088,0.13077482,2249.1,2248.3,6.67094]
[1625100434188,1.0,2249.2,2248.2,9.18346199]
[1625100434286,10.1123,2249.3,2248.4,0.14]
[1625100435433,6.6716,2249.1,2248.4,0.14]
[1625100435533,11.6816,2249.1,2248.4,0.14]
[1625100436235,6.6716,2249.1,2248.4,0.14]
[1625100436436,11.1123,2249.3,2248.4,5.15]
[1625100436610,7.67105,2249.3,2248.4,5.15]
[1625100436912,1.0,2249.3,2248.4,5.15]
[1625100437012,1.0,2249.3,2248.5,0.08]
[1625100437211,1.0,2249.3,2248.6,0.14]
[1625100437493,5.01,2249.4,2248.6,0.14]
[1625100437697,5.01,2249.5,2248.6,6.81042]
[1625100439397,6.67086,2249.3,2248.6,0.14]
[1625100439497,0.04,2249.4,2248.6,0.14]
[1625100439596,5.05,2249.4,2248.6,0.14]
[1625100439797,5.05,2249.3,2248.6,0.14]
[1625100439897,0.04,2249.3,2248.6,0.14]
[1625100440449,6.67178,2249.0,2248.6,0.14]
[1625100441051,6.67178,2249.0,2248.3,0.14]
[1625100441750,9.02628636,2249.3,2248.3,0.14]
[1625100442097,8.89537,2249.3,2248.3,0.14]
[1625100442197,5.01,2249.1,2248.3,0.14]
[1625100442595,8.89537,2249.3,2248.3,0.14]
[1625100442698,5.01,2249.1,2248.3,0.14]
[1625100443702,9.02631325,2249.3,2248.3,0.14]
[1625100444051,5.01,2249.1,2248.3,0.14]
[1625100444302,9.9378,2249.1,2248.3,0.14]
[1625100445400,6.67205,2248.9,2248.3,0.14]
[1625100445703,9.9378,2249.1,2248.3,0.14]
[1625100446648,4.9278,2249.1,2248.3,0.14]
[1625100446750,8.89638,2249.1,2248.3,0.14]
[1625100446850,9.02631325,2249.3,2248.4,0.08]
[1625100447149,9.02631325,2249.3,2248.2,25.17863321]
[1625100447252,9.02631325,2249.3,2248.2,20.2246]
[1625100447954,6.67169,2249.0,2248.2,26.89635]
[1625100448153,6.67169,2249.0,2248.2,20.2246]
[1625100449844,5.01,2249.1,2248.2,20.2246]
[1625100449945,5.01,2249.2,2248.2,20.2246]
[1625100450649,6.67231,2248.8,2248.2,20.2246]
[1625100450750,10.47861,2248.8,2248.2,20.2246]
[1625100450848,10.47861,2248.8,2248.2,9.836]
[1625100454770,5.01,2248.6,2248.2,9.836]
[1625100456418,6.67344,2248.4,2248.2,9.836]
[1625100456916,6.67344,2248.4,2248.2,0.87838769]
[1625100459020,6.52344,2248.4,2248.2,0.87838769]
[1625100460687,5.01,2248.8,2248.2,0.87838769]
[1625100460893,5.01,2248.6,2248.2,0.87838769]
[1625100461089,5.01,2248.8,2248.2,0.87838769]
[1625100461941,5.01,2248.8,2248.2,1.01838769]
[1625100462425,6.67283,2248.6,2248.2,1.01838769]
[1625100463324,8.89641,2249.0,2248.2,1.01838769]
[1625100463524,6.67234,2248.7,2248.2,1.01838769]
[1625100471287,10.01154,2248.7,2248.2,1.01838769]
[1625100471394,10.02300563,2248.7,2248.2,1.01838769]
[1625100471536,3.3392,2248.7,2248.2,1.01838769]
[1625100471636,0.06,2248.6,2248.2,1.01838769]
[1625100471736,3.3392,2248.7,2248.2,1.01838769]
[1625100472388,6.67285,2248.6,2248.2,1.01838769]
[1625100474502,6.67285,2248.6,2248.2,0.87838769]
[1625100474503,10.80945,2248.6,2248.2,0.87838769]
[1625100474800,0.06,2248.5,2248.2,0.87838769]
[1625100475107,4.1366,2248.6,2248.2,0.87838769]
[1625100475195,14.1366,2248.6,2248.2,0.87838769]
[1625100476047,6.67379,2248.4,2248.2,0.87838769]
[1625100480604,16.67284,2248.6,2248.2,0.87838769]
[1625100480805,10.0,2248.6,2248.2,0.87838769]
[1625100480905,10.0,2248.6,2248.3,4.95048506]
[1625100481012,10.0,2248.6,2248.3,0.2]
[1625100481104,10.0,2248.6,2248.4,0.14]
[1625100482033,10.0,2248.6,2248.5,0.08]
[1625100482335,10.0,2248.6,2248.5,5.35763782]
[1625100482431,10.0,2248.6,2248.5,0.22]
[1625100482597,10.0,2248.6,2248.5,5.16188384]
[1625100482794,10.0,2248.6,2248.5,0.22]
[1625100483693,10.0,2248.6,2248.5,5.38126705]
[1625100484396,10.0,2248.6,2248.5,12.05192705]
[1625100484807,10.0,2248.6,2248.5,6.89066]
[1625100485208,10.0,2248.6,2248.5,11.93179343]
[1625100485313,10.0,2248.6,2248.5,14.58789774]
[1625100485410,10.0,2248.6,2248.5,17.87789774]
[1625100485511,10.0,2248.6,2248.5,20.45425337]
[1625100489476,10.0,2248.6,2248.5,27.45425337]
[1625100489580,7.36525892,2248.6,2248.5,27.45425337]
[1625100489782,7.36525892,2248.6,2248.5,47.45425337]
[1625100490180,7.36525892,2248.6,2248.5,27.45425337]
[1625100490378,7.36525892,2248.6,2248.5,22.41311994]
[1625100490880,7.36525892,2248.6,2248.5,42.41311994]
[1625100490982,8.92e-06,2248.6,2248.5,42.41311994]
[1625100491179,8.92e-06,2248.6,2248.5,60.84991994]
[1625100491279,8.92e-06,2248.6,2248.5,40.84991994]
[1625100491480,8.92e-06,2248.6,2248.5,51.61371994]
[1625100491714,8.92e-06,2248.6,2248.5,71.87521994]
[1625100493915,8.92e-06,2248.6,2248.5,91.87521994]
[1625100495066,8.92e-06,2248.6,2248.5,71.87521994]
[1625100496098,8.92e-06,2248.6,2248.5,91.87521994]
[1625100496200,8.92e-06,2248.6,2248.5,71.87521994]
[1625100501809,8.92e-06,2248.6,2248.5,72.92151994]
[1625100502010,8.92e-06,2248.6,2248.5,92.92151994]
[1625100502211,8.92e-06,2248.6,2248.5,72.92151994]
[1625100504573,0.1001,2249.9,2248.5,72.92151994]
[1625100504673,0.1001,2249.9,2249.2,6.66773]
[1625100504872,0.1001,2249.9,2249.3,0.14]
[1625100506049,0.1001,2249.9,2249.4,6.66779]
[1625100506251,0.1001,2249.9,2249.4,0.14]
[1625100506552,0.1001,2249.9,2249.1,3.2679]
[1625100506651,0.1001,2249.9,2249.1,0.14]
[1625100507150,6.76884,2249.9,2249.1,0.14]
[1625100507253,6.76884,2249.9,2249.1,1.01856974]
[1625100510437,6.76884,2249.9,2249.1,7.68735974]
[1625100511940,6.76884,2249.9,2249.1,11.46795974]
[1625100514991,6.76884,2249.9,2249.1,14.80217974]
[1625100515192,6.76884,2249.9,2249.2,6.66849]
[1625100515397,5.01,2249.7,2249.1,1.01856974]
[1625100515596,0.12,2249.8,2249.1,0.87856974]
[1625100515597,5.13,2249.8,2249.1,0.87856974]
[1625100515794,0.04,2249.7,2249.1,0.87856974]
[1625100516096,5.01,2249.8,2249.1,0.87856974]
[1625100516295,4.96,2249.8,2249.1,0.87856974]
[1625100516412,6.66984,2249.4,2249.1,0.87856974]
[1625100516510,8.89298,2249.7,2249.1,0.87856974]
[1625100518211,6.66959,2249.5,2249.1,0.87856974]
[1625100519081,8.89298,2249.7,2249.1,0.87856974]
[1625100519683,4.96,2249.8,2249.1,4.21330974]
[1625100519781,6.66947,2249.6,2249.1,0.87856974]
[1625100519982,4.96,2249.8,2249.1,0.87856974]
[1625100520083,4.96,2249.8,2249.1,1.01856974]
[1625100520282,0.1001,2249.9,2249.4,3.33445]
[1625100520636,0.1001,2249.9,2249.4,8.3977395]
[1625100520733,0.1001,2249.9,2249.4,8.41831073]
[1625100520941,0.1001,2249.9,2249.4,3.47445]
[1625100520943,0.1001,2249.9,2249.4,0.83971784]
[1625100521540,0.1001,2249.9,2249.5,6.66785]
[1625100521638,0.1001,2249.9,2249.6,3.33396]
[1625100521739,0.1001,2249.9,2249.6,4.66186]
[1625100523233,0.1001,2249.9,2249.6,1.1879]
[1625100523329,0.1001,2249.9,2249.4,3.47433]
[1625100523529,0.06,2249.8,2249.4,3.47433]
[1625100523829,0.1001,2249.9,2249.4,3.47433]
[1625100524128,6.6691,2249.7,2249.4,3.47433]
[1625100524530,0.1001,2249.9,2249.4,3.47433]
[1625100527471,0.1001,2249.9,2249.5,6.66829]
[1625100527995,0.1001,2249.9,2249.5,10.00231]
[1625100528100,0.1001,2249.9,2249.5,3.33402]
[1625100528899,0.1001,2249.9,2249.6,6.66774]
[1625100528995,0.1001,2249.9,2249.6,10.37604]
[1625100529195,0.1001,2249.9,2249.7,0.14]
[1625100529296,0.1001,2249.9,2249.5,3.33402]
[1625100532513,0.1001,2249.9,2249.6,4.99832543]
[1625100532616,0.1001,2249.9,2249.6,5.23936506]
[1625100532718,0.1001,2249.9,2249.6,8.41446506]
[1625100532811,0.1001,2249.9,2249.6,3.3751]
[1625100533510,0.1001,2249.9,2249.7,6.66768]
[1625100533713,0.1001,2249.9,2249.8,0.14]
[1625100537412,0.1001,2249.9,2249.5,12.22412]
[1625100538464,0.1001,2249.9,2249.5,3.33402]
[1625100538564,0.1001,2249.9,2249.6,6.66817]
[1625100539007,0.1001,2249.9,2249.7,0.14]
[1625100539507,0.1001,2249.9,2249.7,6.80757]
[1625100539963,0.1001,2249.9,2249.5,3.33402]
[1625100540062,0.1001,2249.9,2249.5,3.47402]
[1625100541716,0.1001,2249.9,2249.7,6.66781]
[1625100541896,0.1001,2249.9,2249.8,0.14]
[1625100542199,0.1001,2249.9,2249.8,3.2553]
[1625100542300,0.1001,2249.9,2249.8,8.34111385]
[1625100542399,0.1001,2249.9,2249.8,8.46292894]
[1625100542753,0.1001,2249.9,2249.8,11.75292894]
[1625100542850,0.1001,2249.9,2249.8,21.15344671]
[1625100542948,0.1001,2249.9,2249.8,24.00374042]
[1625100544093,0.1001,2249.9,2249.8,18.95611148]
[1625100544493,0.1001,2249.9,2249.8,24.06224976]
[1625100546880,0.0001,2249.9,2249.8,24.06224976]
[1625100546979,8.794,2250.8,2249.8,24.06224976]
[1625100547082,8.794,2250.8,2250.2,3.33245]
[1625100547186,6.85,2250.8,2250.2,10.33245]
[1625100547283,6.85,2250.8,2250.4,8.3]
[1625100547383,6.85,2250.8,2250.5,10.03249174]
[1625100547482,6.85,2250.8,2250.5,5.15]
[1625100547580,6.85,2250.8,2250.6,0.18]
[1625100547782,6.85,2250.8,2250.7,0.14]
[1625100549333,6.85,2250.8,2250.7,6.80371]
[1625100550281,0.2,2250.9,2250.7,6.80371]
[1625100550685,0.2,2250.9,2250.8,0.04]
[1625100550884,0.2,2250.9,2250.8,0.18]
[1625100551885,0.2,2250.9,2250.8,0.14]
[1625100553642,0.2,2250.9,2250.7,6.66371]
[1625100553844,0.2,2250.9,2250.8,0.14]
[1625100553944,0.2,2250.9,2250.8,4.7817]
[1625100554143,0.2,2250.9,2250.8,4.8617]
[1625100554442,0.2,2250.9,2250.8,9.78492226]
[1625100554789,0.2,2250.9,2250.8,4.8617]
[1625100557779,0.2,2250.9,2250.8,9.86866051]
[1625100557876,0.2,2250.9,2250.8,9.873481]
[1625100557979,0.2,2250.9,2250.8,4.8617]
[1625100558279,6.85,2251.4,2250.8,9.88077666]
[1625100558381,6.85,2251.4,2250.9,0.2]
[1625100558481,6.85,2251.4,2251.0,3.29]
[1625100558578,6.85,2251.4,2251.0,3.43]
[1625100558679,17.2093,2251.9,2251.0,3.43]
[1625100558983,17.2093,2251.9,2251.1,0.12]
[1625100559078,17.2093,2251.9,2251.0,3.43]
[1625100559178,17.2093,2251.9,2251.1,6.66267]
[1625100559302,17.2093,2251.9,2251.1,6.80267]
[1625100559404,7.05,2251.9,2251.1,6.80267]
[1625100559602,7.05,2251.9,2251.2,4.96982922]
[1625100559802,7.05,2251.9,2251.3,0.14]
[1625100559903,7.05,2251.9,2251.3,3.7486]
[1625100560101,7.05,2251.9,2251.4,0.04]
[1625100560202,0.2,2251.9,2251.4,0.04]
[1625100560306,0.2,2251.9,2251.5,0.14]
[1625100564368,5.01,2251.8,2251.3,0.14]
[1625100564460,5.13,2251.8,2251.3,0.14]
[1625100564557,0.12,2251.8,2250.7,10.0579]
[1625100564658,0.28912971,2251.8,2250.7,10.0579]
[1625100564756,0.04,2251.7,2250.7,10.0579]
[1625100564857,0.16912971,2251.8,2250.7,10.0579]
[1625100565056,6.66469,2251.4,2250.7,10.0579]
[1625100565861,6.66469,2251.4,2250.6,0.14]
[1625100565960,10.42512578,2251.4,2250.6,0.14]
[1625100566109,6.66507,2251.3,2250.6,0.14]
[1625100567012,6.67169295,2251.3,2250.6,0.14]
[1625100567109,6.66559,2251.1,2250.6,0.14]
[1625100568168,6.66512,2251.3,2250.6,0.14]
[1625100568411,8.88689,2251.5,2250.6,0.14]
[1625100569408,8.88689,2251.5,2250.6,6.80434]
[1625100569912,5.01,2251.7,2250.6,6.80434]
[1625100570011,5.01,2251.6,2250.6,6.80434]
[1625100570110,11.86,2251.6,2250.6,6.80434]
[1625100571355,18.52422,2251.6,2250.6,6.80434]
[1625100573208,6.85,2251.6,2250.7,3.33191]
[1625100573405,6.85,2251.6,2250.8,0.2]
[1625100573608,6.85,2251.6,2250.8,5.21]
[1625100574207,6.85,2251.6,2250.8,5.15]
[1625100574411,6.85,2251.6,2251.2,6.66295]
[1625100574610,6.85,2251.6,2251.3,0.14]
[1625100574711,6.85,2251.6,2251.2,4.17010733]
[1625100574910,6.85,2251.6,2251.3,0.14]
[1625100579168,6.85,2251.6,2251.3,3.47106]
[1625100579466,6.85,2251.6,2251.3,10.13362]
[1625100579724,6.85,2251.6,2251.4,0.08]
[1625100579923,6.85,2251.6,2251.5,0.14]
[1625100580727,10.8381,2251.9,2251.5,0.14]
[1625100580830,0.2,2251.9,2251.5,0.14]
[1625100582254,0.2,2251.9,2251.5,3.8663]
[1625100586456,0.2,2251.9,2251.5,10.52826]
[1625100586558,0.2,2251.9,2251.5,15.5069147]
[1625100586858,0.2,2251.9,2251.6,0.04]
[1625100587077,0.2,2251.9,2251.7,0.22]
[1625100587273,0.2,2251.9,2251.7,0.14]
[1625100589722,0.2,2251.9,2251.5,3.7263]
[1625100589723,0.2,2251.9,2251.5,1.23401534]
[1625100589825,0.2,2251.9,2251.6,0.14]
[1625100591823,6.86303,2251.9,2251.6,0.14]
[1625100591920,6.86303,2251.9,2250.9,24.13432]
[1625100592025,0.06,2251.8,2251.2,0.14]
[1625100592222,4.0944,2251.9,2251.2,0.14]
[1625100593623,0.2,2251.9,2251.2,0.14]